lending/lending_fUSD_20240721
["ID","MTS","AMOUNT","RATE_DAILY","PERIOD"]
[332853290,1721583032365,-590.19,0.00010959,2]
[332853291,1721583032374,-2212.0964926,0.00010959,2]
[332853292,1721583032387,-1459.7335074,0.00010959,2]
[332853293,1721583032396,-491.83,0.00010959,2]
[332853294,1721583032406,-255.0,0.00010995,2]
[332853295,1721583032416,-313.25615761,0.00011,2]
[332853296,1721583032425,-478.40863638,0.00011,2]
[332853297,1721583032435,-700.0,0.00011,4]
[332853298,1721583032444,-135.95355126,0.00011005,2]
[332853299,1721583032455,-1059.85094874,0.00011005,2]
[332853300,1721583032469,-237.13050973,0.00011005,2]
[332853301,1721583032481,-2252.07039246,0.00011005,2]
[332853302,1721583032492,-313.57105066,0.00011005,2]
[332853303,1721583032503,-545.15058203,0.00011005,2]
[332853309,1721583037567,-409.85,0.00010959,2]
[332853310,1721583037577,-15.7,0.00011005,2]
[332853311,1721583037733,-1552.0,0.00011005,2]
[332853312,1721583037759,-4133.80666512,0.00011005,2]
[332853313,1721583037768,-235.77,0.00011048,2]
[332853314,1721583037777,-304.67,0.00011068,2]
[332853315,1721583037787,-529.74,0.00011068,2]
[332853316,1721583037797,-529.74,0.00011068,2]
[332853317,1721583037806,-529.74,0.00011068,2]
[332853318,1721583037816,-232.93,0.00011068,2]
[332853319,1721583037825,-1100.0,0.000111,4]
[332853320,1721583037835,-308.85879004,0.00011105,2]
[332853321,1721583037844,-164.16460495,0.00011105,2]
[332853322,1721583037854,-265.08570858,0.00011105,2]
[332853323,1721583037864,-512.39532544,0.00011105,2]
[332853324,1721583037873,-155.0,0.00011105,2]
[332853325,1721583037883,-492.92587255,0.00011105,2]
[332853326,1721583037892,-1296.43589473,0.00011105,2]
[332853327,1721583037902,-539.10941512,0.00011105,2]
[332853328,1721583037912,-367.33448944,0.00011105,2]
[332853329,1721583037921,-155.0,0.00011105,2]
[332853330,1721583037930,-719.02900539,0.00011105,2]
[332853331,1721583037940,-652.64700985,0.00011105,2]
[332853332,1721583037950,-648.95328694,0.00011105,2]
[332853333,1721583037960,-163.56290518,0.00011105,2]
[332853334,1721583037969,-1500.0,0.00011105,2]
[332853335,1721583037979,-1273.72040028,0.00011105,2]
[332853336,1721583037988,-1137.47940458,0.00011105,2]
[332853337,1721583037998,-648.02566521,0.00011105,2]
[332853339,1721583038011,-352.64994334,0.00011105,2]
[332853341,1721583038021,-254.72693387,0.00011105,2]
[332853343,1721583038031,-155.80827537,0.00011105,2]
[332853345,1721583038041,-1993.1054535,0.00011105,2]
[332853347,1721583038053,-1073.15860955,0.00011105,2]
[332853349,1721583038063,-191.65859836,0.00011105,2]
[332853351,1721583038072,-15461.81890924,0.00011105,2]
[332853353,1721583038082,-484.49996538,0.00011105,2]
[332853355,1721583038091,-662.3303,0.0001112,2]
[332853357,1721583038101,-531.52423191,0.00011161,2]
[332853359,1721583038110,-1000.0,0.00011164,2]
[332853361,1721583038119,-258.71339457,0.0001117,2]
[332853363,1721583038129,-12931.87640585,0.00011176,2]
[332853365,1721583038139,-210.65596664,0.00011186,2]
[332853367,1721583038149,-254.90397989,0.00011186,2]
[332853369,1721583038158,-843.60563306,0.00011199,2]
[332853371,1721583038167,-1500.0,0.000112,4]
[332853373,1721583038177,-442.39221259,0.00011206,2]
[332853375,1721583038186,-525.41980997,0.00011206,2]
[332853377,1721583038195,-200.91357981,0.00011206,2]
[332853379,1721583038205,-17535.26949678,0.0001122,2]
[332853381,1721583038214,-691.73292,0.0001122,2]
[332853383,1721583038224,-5666.0309,0.00011227,2]
[332853385,1721583038233,-87862.5835,0.00011227,2]
[332853387,1721583038244,-2856.108,0.00011231,2]
[332853389,1721583038253,-164.80042231,0.00011231,2]
[332853391,1721583038263,-168.41,0.00011292,2]
[332853393,1721583038273,-1800.0,0.000113,4]
[332853395,1721583038283,-158.49361108,0.00011322,2]
[332853396,1721583038292,-155.0,0.00011324,2]
[332853398,1721583038301,-155.0,0.00011324,2]
[332853400,1721583038311,-264.09660197,0.00011324,2]
[332853427,1721583038617,-115290.5357558,0.00011327,2]
[332853428,1721583038633,-200.0,0.00011331,2]
[332853429,1721583038643,-500.0,0.00011331,2]
[332853430,1721583038654,-500.0,0.00011331,2]
[332853431,1721583038664,-500.0,0.00011331,2]
[332853432,1721583038674,-500.0,0.00011331,2]
[332853433,1721583038686,-500.0,0.00011331,2]
[332853434,1721583038700,-500.0,0.00011331,2]
[332853435,1721583038709,-500.0,0.00011331,2]
[332853436,1721583038718,-895.0,0.00011331,2]
[332853437,1721583038727,-2000.0,0.00011331,2]
[332853438,1721583038737,-486.07143251,0.00011384,2]
[332853439,1721583038747,-155.0863021,0.00011384,2]
[332853440,1721583038757,-300.0,0.000114,4]
[332853441,1721583038769,-200.0,0.00011444,2]
[332853442,1721583038779,-2000.0,0.00011444,2]
[332853444,1721583038789,-362.0,0.00011475,2]
[332853446,1721583038798,-38345.0,0.00011475,2]
[332853448,1721583038807,-1201.0,0.00011475,2]
[332853450,1721583038817,-300.0,0.000115,4]
[332853452,1721583038827,-155.0,0.00011525,2]
[332853454,1721583038836,-155.0,0.00011525,2]
[332853456,1721583038846,-200.0,0.00011559,2]
[332853458,1721583038856,-2000.0,0.00011559,2]
[332853460,1721583038865,-300.0,0.000116,4]
[332853462,1721583038875,-150.0,0.00011652,2]
[332853464,1721583038885,-396.47951345,0.00011674,2]
[332853466,1721583038894,-300.0,0.000117,4]
[332853468,1721583038903,-168.26,0.00011715,2]
[332853470,1721583038913,-150.0,0.00011718,2]
[332853472,1721583038922,-691.73293,0.0001176,2]
[332853474,1721583038931,-176.84,0.00011772,2]
[332853476,1721583038941,-150.0,0.00011786,2]
[332853478,1721583038951,-1000.0,0.000118,2]
[332853480,1721583038961,-3189.36040398,0.000118,2]
[332853482,1721583038970,-185.14617473,0.000118,2]
[332853484,1721583038980,-1107.53767892,0.000118,2]
[332853486,1721583038989,-3742.7095,0.000118,2]
[332853488,1721583039001,-940.0,0.000118,4]
[332853490,1721583039012,-1000.0,0.000118,2]
[332853492,1721583039022,-198.96306483,0.000118,2]
[332853493,1721583039032,-278.1712557,0.000118,2]
[332853494,1721583039041,-164.8004223,0.000118,2]
[332853495,1721583039051,-340.95646059,0.000118,2]
[332853496,1721583039061,-500.0,0.00011804,2]
[332853497,1721583039070,-500.0,0.00011804,2]
[332853498,1721583039080,-500.0,0.00011804,2]
[332853499,1721583039089,-500.0,0.00011805,2]
[332853500,1721583039099,-500.0,0.00011805,2]
[332853501,1721583039108,-500.0,0.00011805,2]
[332853502,1721583039117,-500.0,0.00011805,2]
[332853503,1721583039126,-150.0,0.00011816,2]
[332853504,1721583039136,-150.0,0.0001183,2]
[332853505,1721583039145,-692.42718412,0.0001185,2]
[332853506,1721583039154,-958.87150947,0.0001185,2]
[332853507,1721583039164,-10528.40518333,0.0001185,2]
[332853508,1721583039173,-4732.40441512,0.0001188,2]
[332853509,1721583039183,-150.54307834,0.00011889,2]
[332853510,1721583039193,-154.86,0.0001189,30]
[332853511,1721583039202,-150.0,0.0001189,2]
[332853512,1721583039212,-150.0,0.0001189,2]
[332853513,1721583039221,-108589.8892332,0.00011892,2]
[332853514,1721583039231,-101889.2427106,0.00011892,2]
[332853515,1721583039240,-95188.5961881,0.00011892,2]
[332853516,1721583039250,-5367.1043254,0.00011894,2]
[332853517,1721583039260,-356.93341906,0.00011896,2]
[332853518,1721583039270,-752.7153917,0.00011897,2]
[332853519,1721583039279,-224.34569514,0.00011899,2]
[332853520,1721583039289,-153.58758173,0.00011899,2]
[332853521,1721583039299,-966004.61754632,0.000119,2]
[332853522,1721583039315,-409639.21164988,0.000119,2]
[332853523,1721583039326,-21297.3192137,0.000119,2]
[332853524,1721583039337,-428.61941707,0.000119,2]
[332853525,1721583039348,-310.24010705,0.000119,2]
[332853527,1721583039637,-0.3442669,0.000119,2]
[332853528,1721583039653,-999.69444001,0.000119,2]
[332853529,1721583039665,-483.66,0.000119,2]
[332853533,1721583039997,-68516.91120781,0.000119,2]
[332853552,1721583040168,-627.83,9.962e-05,2]
[332853554,1721583040180,-1500.0,9.962e-05,2]
[332853556,1721583040192,-255.1798586,9.962e-05,2]
[332853558,1721583040202,-1762.653,0.00011475,2]
[332853560,1721583040211,-14180.7198054,0.000119,2]
[332853562,1721583040226,-961.27203814,0.000119,2]
[332853564,1721583040238,-12969.6,0.000119,2]
[332853567,1721583040249,-276234.35050033,0.000119,2]
[332853569,1721583040265,-75852.50550569,0.000119,2]
[332853571,1721583040277,-501.73880926,0.000119,2]
[332853574,1721583040288,-1387.70619631,0.000119,2]
[332853579,1721583040333,-415.87000001,0.000119,2]
[332853581,1721583040344,-469.26882658,0.000119,2]
[332853686,1721583042717,-662.96282567,0.000119,2]
[332853687,1721583042729,-312.14909766,0.000119,2]
[332853688,1721583042802,-1663.0,0.0001183,2]
[332853689,1721583042811,-811642.19305363,0.000119,2]
[332853690,1721583042823,-286476.75448755,0.000119,2]
[332853691,1721583042942,-206303.84121792,0.000119,2]
[332853692,1721583042957,-590.9,0.000119,2]
[332853693,1721583045617,-4465.63663517,0.000119,2]
[332853694,1721583045899,-3434.85577158,0.000119,2]
[332853695,1721583045911,-676.2966,0.000119,2]
[332853696,1721583045944,-30327.27358639,0.000119,2]
[332853697,1721583045957,-124661.70098943,0.000119,2]
[332853700,1721583046024,-9339.79897522,0.000119,2]
[332853702,1721583046036,-726.0,0.000119,2]
[332853704,1721583046048,-885.7,0.000119,2]
[332853706,1721583046060,-661.33544918,0.000119,2]
[332853773,1721583046679,-1981.0,0.000119,2]
[332853777,1721583046714,-2377.93226991,0.000119,2]
[332854963,1721583234223,150.0,8.703e-05,2]
[332854964,1721583234244,20.53,8.703e-05,2]
[332854965,1721583298268,395.0378566,8.703e-05,2]
[332854966,1721583300068,870.85768416,8.703e-05,2]
[332854967,1721583390125,870.4081649,8.703e-05,2]
[332854968,1721583409471,7566.63074584,8.703e-05,2]
[332854969,1721583424181,1648.92287267,8.703e-05,2]
[332854970,1721583429695,363.38225495,8.703e-05,2]
[332854972,1721583511178,7566.63074584,8.703e-05,2]
[332854973,1721583547396,-1523.69,9.111e-05,2]
[332854974,1721583674561,-250.0,0.00010324,2]
[332854975,1721583674584,-600.0,0.00010383,2]
[332854976,1721583674607,-551.75,0.00010394,2]
[332854977,1721583674631,-250.0,0.00010456,2]
[332854978,1721583674653,-167.34,0.00010482,2]
[332854979,1721583674675,-200.0,0.00010498,2]
[332854980,1721583674698,-135.91,0.00010548,2]
[332854981,1721583751995,1447.5,8.53e-05,2]
[332854982,1721583823871,160.22331655,8.53e-05,2]
[332854983,1721583841274,-174.01178014,0.00010339,2]
[332854984,1721583841297,-347.18365579,0.00010339,2]
[332854985,1721583841319,-155.23445435,0.00010339,2]
[332854986,1721583841342,-300.0,0.00010409,2]
[332854987,1721583841366,-444.57010972,0.0001041,2]
[332855018,1721584099762,190.21,8.223e-05,2]
[332855019,1721584119775,-250.0,0.00010292,2]
[332855020,1721584119798,-170.59,0.00010308,2]
[332855021,1721584120084,-162.14215493,0.00010309,2]
[332855022,1721584120128,-652.64700985,0.00010339,2]
[332855023,1721584120152,-300.23388085,0.0001041,2]
[332855024,1721584120173,-412.41398176,0.0001041,2]
[332855025,1721584120193,-181.50980067,0.0001041,2]
[332855026,1721584120213,-80.01989028,0.0001041,2]
[332855027,1721584120236,-4468.81996511,0.0001041,2]
[332855082,1721584231994,-270.26587227,0.0001041,2]
[332855086,1721584232007,-142.14810949,0.0001041,2]
[332855088,1721584232016,-128.90817753,0.0001041,2]
[332855090,1721584232028,-171.32570332,0.0001041,2]
[332855091,1721584232037,-181.50980067,0.0001041,2]
[332855092,1721584232046,-44.98525806,0.0001041,2]
[332855105,1721584233114,-3189.35,0.0001041,2]
[332855106,1721584233129,-10207.04985645,0.0001041,2]
[332855107,1721584233140,-635.3687986,0.0001041,2]
[332855108,1721584233173,-282.00774737,0.0001041,2]
[332855109,1721584233184,-865.31617129,0.0001041,2]
[332855110,1721584233196,-3000.0,0.0001041,2]
[332855111,1721584233225,-1207.10220312,0.0001041,2]
[332855112,1721584233235,-122.18182461,0.00010441,2]
[332855113,1721584233251,-89.10817539,0.00010441,2]
[332855114,1721584233261,-500.0,0.00010455,2]
[332855115,1721584233270,-1236.84,0.00010466,2]
[332855116,1721584233280,-194.79182461,0.00010482,2]
[332855117,1721584233291,-55.20817539,0.00010482,2]
[332855118,1721584233300,-150.0,0.00010521,2]
[332855119,1721584233309,-291.26329216,0.00010549,2]
[332855120,1721584233319,-341.98726952,0.00010549,2]
[332855121,1721584233329,-155.41610123,0.00010549,2]
[332855122,1721584233339,-11488.53489544,0.00010549,2]
[332855123,1721584233351,-420.98804803,0.00010549,2]
[332855138,1721584237807,-1235.47644,0.00010549,2]
[332855139,1721584237847,-955.27057878,0.00010549,2]
[332855140,1721584237905,-3.14410122,0.00010549,2]
[332855141,1721584237920,-544.57763909,0.00010549,2]
[332855142,1721584238016,-362.42891287,0.00010549,2]
[332855143,1721584238056,-328.92787868,0.00010549,2]
[332855144,1721584238102,-526.07957864,0.00010549,2]
[332855145,1721584238114,-275.96458678,0.00010549,2]
[332855146,1721584238125,-3185.485254,0.00010549,2]
[332855147,1721584238136,-952.57554,0.00010549,2]
[332855148,1721584238157,-620.0,0.00010549,2]
[332855286,1721584240100,-224.42,0.00010636,2]
[332855287,1721584240109,-487.08985659,0.00010636,2]
[332855288,1721584240135,-2174.44014341,0.00010636,2]
[332855289,1721584240146,-2408.69,0.00010636,2]
[332855290,1721584240156,-1447.5,0.00010794,2]
[332855291,1721584240165,-499.99,0.00010859,2]
[332855292,1721584240174,-797.8462,0.00010859,2]
[332855293,1721584240183,-150.0,0.00010959,2]
[332855294,1721584240192,-341.55,0.00010959,2]
[332855295,1721584240202,-284.62,0.00010959,2]
[332855296,1721584240211,-237.18,0.00010959,2]
[332855297,1721584240224,-197.65,0.00010959,2]
[332855298,1721584240234,-164.71,0.00010959,2]
[332855299,1721584240243,-823.59,0.00010959,2]
[332855300,1721584240252,-242.90606631,0.00011043,2]
[332855301,1721584240261,-251.1369605,0.00011043,2]
[332855302,1721584240270,-159.77613635,0.00011043,2]
[332855303,1721584240279,-431.87035998,0.00011043,2]
[332855304,1721584240289,-692.42718412,0.00011105,2]
[332855305,1721584240298,-356.93341906,0.00011105,2]
[332855306,1721584240307,-2837.16238839,0.00011105,2]
[332855307,1721584240316,-159.37746402,0.00011105,2]
[332855308,1721584240326,-155.0,0.00011105,2]
[332855309,1721584240335,-3399.71436587,0.00011105,2]
[332855310,1721584240345,-1386.74864928,0.00011105,2]
[332855311,1721584240354,-845.66414586,0.00011105,2]
[332855312,1721584240364,-2124.80845063,0.00011105,2]
[332855313,1721584240373,-599.85799968,0.00011105,2]
[332855314,1721584240383,-3034.9641,0.0001112,2]
[332855315,1721584240392,-865.3161,0.0001112,2]
[332855316,1721584240401,-500.0,0.00011127,2]
[332855317,1721584240411,-28085.24071162,0.00011186,2]
[332855318,1721584240420,-270.18518051,0.00011206,2]
[332855319,1721584240429,-208.83485614,0.00011206,2]
[332855320,1721584240439,-228.80899631,0.00011206,2]
[332855321,1721584240450,-150.99933234,0.00011206,2]
[332855322,1721584240459,-673.88092935,0.00011224,2]
[332855323,1721584242094,-326.11907065,0.00011224,2]
[332855324,1721584242104,-400.0,0.00011306,2]
[332855325,1721584242113,-157.37127731,0.00011384,2]
[332855326,1721584242122,-10000.0,0.00011477,2]
[332855327,1721584242131,-600.0,0.00011681,2]
[332855328,1721584242143,-2500.0,0.000117,2]
[332855329,1721584242153,-569.37821,0.0001178,2]
[332855330,1721584242162,-4557.368689,0.000118,2]
[332855331,1721584242171,-1000.0,0.000118,2]
[332855332,1721584242181,-31908.90632305,0.000118,2]
[332855333,1721584242208,-500.35208501,0.000118,2]
[332855412,1721584245135,-6746.74,0.00011477,2]
[332855413,1721584245148,-2120.46047105,0.00011477,2]
[332855467,1721584247282,-292.84,0.00011477,2]
[332855468,1721584247543,-328.85893578,0.00011477,2]
[332855469,1721584247555,-511.10059317,0.00011477,2]
[332855470,1721584247565,-115.76425128,0.00011477,2]
[332855471,1721584247576,-9884.23574872,0.00011477,2]
[332855472,1721584247586,-35462.44219194,0.000118,2]
[332855473,1721584247596,-1000.0,0.000118,2]
[332855474,1721584247605,-8341.106,0.000118,2]
[332855475,1721584247615,-236087.1083,0.000118,2]
[332855476,1721584247625,-1000.0,0.000118,2]
[332855477,1721584247635,-189.36040396,0.000118,2]
[332855478,1721584247644,-7500.0,0.000118,2]
[332855479,1721584247654,-4419.3182131,0.000118,2]
[332855480,1721584247664,-500.0,0.00011804,2]
[332855481,1721584247674,-500.0,0.00011805,2]
[332855482,1721584247684,-500.0,0.00011805,2]
[332855483,1721584247693,-500.0,0.00011805,2]
[332855485,1721584247703,-362.0,0.00011843,2]
[332855486,1721584247713,-1663.0,0.00011843,2]
[332855487,1721584247725,-1253.0,0.00011843,2]
[332855489,1721584247734,-1829.0,0.00011843,2]
[332855490,1721584247744,-445.266,0.00011843,2]
[332855491,1721584247753,-841.197,0.00011843,2]
[332855492,1721584247764,-620.0,0.00011843,2]
[332855494,1721584247773,-450.0,0.00011843,2]
[332855495,1721584247783,-166.0,0.00011843,2]
[332855496,1721584247793,-206.74,0.00011843,2]
[332855497,1721584247803,-550.0,0.00011843,2]
[332855498,1721584247813,-2382.0,0.00011843,2]
[332855499,1721584247823,-262.988,0.00011843,2]
[332855500,1721584247833,-3282.0,0.00011843,2]
[332855501,1721584247843,-1994.0,0.00011843,2]
[332855502,1721584247854,-150.0,0.00011843,2]
[332855503,1721584247864,-1277.972,0.00011843,2]
[332855504,1721584247874,-5826.0,0.00011843,2]
[332855505,1721584247885,-38345.0,0.00011843,2]
[332855506,1721584247895,-1668.0,0.00011843,2]
[332855507,1721584247905,-5120.0,0.00011843,2]
[332855508,1721584247915,-154.0,0.00011843,2]
[332855509,1721584247926,-215.0,0.00011843,2]
[332855510,1721584247936,-1073.0,0.00011843,2]
[332855511,1721584247947,-209.076,0.00011843,2]
[332855512,1721584247957,-163.0,0.00011843,2]
[332855513,1721584247967,-163.052,0.00011843,2]
[332855514,1721584247980,-279.80739725,0.0001185,2]
[332855515,1721584247990,-150.0,0.0001189,2]
[332855516,1721584247999,-418.85485778,0.00011897,2]
[332855517,1721584248009,-224.34569514,0.00011899,2]
[332855518,1721584248019,-168968.51403014,0.000119,2]
[332855519,1721584248039,-9410.275229,0.000119,2]
[332855520,1721584248051,-6923.00559999,0.000119,2]
[332855521,1721584288821,-1000.0,0.000114,2]
[332855522,1721584288842,-1000.0,0.00011477,2]
[332855523,1721584288853,-1070.0,0.00011477,2]
[332855524,1721584337170,-585.0,9.478e-05,2]
[332855525,1721584337204,-843.66,9.479e-05,2]
[332855526,1721584337216,-585.0,9.479e-05,2]
[332855527,1721584337236,-49.68,9.479e-05,2]
[332855528,1721584337246,-1428.66,0.00010309,2]
[332855529,1721584342366,169.0,8.898e-05,2]
[332855530,1721584368335,-265.977,0.00010309,2]
[332855531,1721584368359,-265.977,0.00011086,2]
[332855532,1721584368371,-1533.7522,0.00011086,2]
[332855533,1721584368381,-40.2938,0.00011378,2]
[332855534,1721584404957,-5238.0,0.00011163,2]
[332855535,1721584411180,748.80086986,8.898e-05,2]
[332855536,1721584467871,-156.19862631,0.00010785,2]
[332855537,1721584467920,-1337.22430851,0.00010785,2]
[332855538,1721584467970,-150.0,0.00011128,2]
[332855539,1721584468020,-300.0,0.00011162,2]
[332855540,1721584468051,-156.19862631,0.00011163,2]
[332855541,1721584468068,-1337.22430851,0.00011163,2]
[332855542,1721584468087,-150.0,0.00011163,2]
[332855543,1721584468103,-300.0,0.00011163,2]
[332855544,1721584468123,-16718.57706518,0.00011163,2]
[332855545,1721584468140,-1152.8562,0.00011378,2]
[332855546,1721584468155,-65.72086518,0.00011384,2]
[332855547,1721584547252,-1000.0,0.00011,2]
[332855548,1721584547276,-528.18990579,0.00011322,2]
[332855549,1721584547298,-1255.8327759,0.00011322,2]
[332855550,1721584547321,-521.74362309,0.00011384,2]
[332855551,1721584547343,-521.74362309,0.00011384,2]
[332855552,1721584547365,-300.23388085,0.00011384,2]
[332855553,1721584547387,-181.50980067,0.00011384,2]
[332855554,1721584547409,-412.41398176,0.00011384,2]
[332855555,1721584547431,-181.50980067,0.00011384,2]
[332855556,1721584547454,-150.0,0.00011476,2]
[332855557,1721584547476,-16636.82260818,0.00011477,2]
[332855558,1721584580799,-300.0,0.00011476,2]
[332855559,1721584580839,-7930.0,0.00011477,2]
[332855560,1721584580876,-1554.0,0.00011477,2]
[332855561,1721584616240,-795.2,0.00011226,2]
[332855562,1721584616264,-8083.8,0.00011477,2]
[332855563,1721584846555,155.0,0.00011896,60]
[332855564,1721584864727,263.38,8.375e-05,2]
[332855565,1721584864750,150.0,8.375e-05,2]
[332855566,1721584864776,150.0,8.375e-05,2]
[332855567,1721584864798,150.0,8.375e-05,2]
[332855568,1721584864821,150.0,8.375e-05,2]
[332855569,1721584864845,150.0,8.375e-05,2]
[332855570,1721584864868,150.0,8.375e-05,2]
[332855571,1721584864890,150.0,8.375e-05,2]
[332855572,1721584864912,91.04,8.375e-05,2]
[332855573,1721584962360,450.0,8.375e-05,2]
[332855657,1721585336637,150.0,8.375e-05,2]
[332855658,1721585336660,150.0,8.375e-05,2]
[332855659,1721585336683,150.0,8.375e-05,2]
[332855660,1721585336706,150.0,8.375e-05,2]
[332855661,1721585336728,150.0,8.375e-05,2]
[332855662,1721585336753,150.0,8.375e-05,2]
[332855663,1721585336779,150.0,8.375e-05,2]
[332855664,1721585336818,150.0,8.375e-05,2]
[332855665,1721585336847,150.0,8.375e-05,2]
[332855666,1721585336874,150.0,8.375e-05,2]
[332855667,1721585336899,150.0,8.375e-05,2]
[332855668,1721585336924,150.0,8.375e-05,2]
[332855669,1721585336950,150.0,8.375e-05,2]
[332855670,1721585336978,192.41907189,8.375e-05,2]
[332855671,1721585337006,79115.50801135,8.375e-05,2]
[332855672,1721585414083,1377.86,8.219e-05,2]
[332855673,1721585416414,2090.2,8.375e-05,2]
[332855699,1721585433416,-250.0,9.982e-05,2]
[332855701,1721585433425,-179.54,0.00010061,2]
[332855703,1721585433436,-164.93,0.00010068,2]
[332855704,1721585433452,-164.93,0.00010081,2]
[332855706,1721585433462,-164.93,0.00010093,2]
[332855707,1721585433472,-11.66632994,0.00010106,2]
[332855710,1721585433491,-153.26367006,0.00010106,2]
[332855712,1721585433501,-164.93,0.00010118,2]
[332855713,1721585433510,-240.76334725,0.0001015,2]
[332855714,1721585433522,-59.23665275,0.0001015,2]
[332855715,1721585433533,-418.95896555,0.00010151,2]
[332855716,1721585433548,-471.78160742,0.00010151,2]
[332855717,1721585433558,-371.74643697,0.00010151,2]
[332855718,1721585433568,-242.90606631,0.00010151,2]
[332855719,1721585433577,-525.41980997,0.00010151,2]
[332855720,1721585433588,-946.96059545,0.00010151,2]
[332855721,1721585433598,-339.73670493,0.00010151,2]
[332855722,1721585433608,-346.96801926,0.00010151,2]
[332855723,1721585433623,-1047.53324844,0.00010151,2]
[332855724,1721585433634,-155.0,0.00010151,2]
[332855725,1721585433644,-183.85776361,0.00010151,2]
[332855726,1721585433655,-200.0,0.00010173,2]
[332855727,1721585433665,-14140.35,0.00010231,2]
[332855728,1721585433675,-1000.0,0.00010254,2]
[332855729,1721585433686,-167.34,0.00010261,2]
[332855730,1721585433698,-250.0,0.0001028,2]
[332855731,1721585433710,-1377.86,0.00010476,2]
[332855732,1721585433720,-214.5,0.00010883,2]
[332855733,1721585433730,-214.5,0.00010886,2]
[332855734,1721585433740,-214.5,0.00010889,2]
[332855735,1721585433750,-214.5,0.00010892,2]
[332855736,1721585433760,-499.99,0.00010892,2]
[332855737,1721585433770,-214.5,0.00010894,2]
[332855738,1721585433780,-214.5,0.00010897,2]
[332855739,1721585433790,-214.5,0.000109,2]
[332855740,1721585433800,-214.5,0.00010903,2]
[332855741,1721585433810,-214.5,0.00010906,2]
[332855742,1721585433819,-214.5,0.00010909,2]
[332855743,1721585433829,-214.5,0.00010912,2]
[332855744,1721585433839,-214.5,0.00010915,2]
[332855745,1721585433848,-214.5,0.00010917,2]
[332855746,1721585433857,-214.5,0.0001092,2]
[332855747,1721585433872,-214.5,0.00010923,2]
[332855748,1721585433882,-214.5,0.00010926,2]
[332855749,1721585433891,-214.5,0.00010929,2]
[332855750,1721585433901,-214.5,0.00010932,2]
[332855752,1721585433910,-214.5,0.00010935,2]
[332855753,1721585433920,-214.5,0.00010938,2]
[332855754,1721585433929,-18594.15240011,0.00011,2]
[332855755,1721585433939,-220.46,0.00011021,2]
[332855756,1721585433948,-1007.991,0.00011021,2]
[332855757,1721585433957,-1000.0,0.00011104,2]
[332855758,1721585433967,-225.43552812,0.00011105,2]
[332855759,1721585433976,-11797.73321592,0.00011105,2]
[332855760,1721585433988,-3664.08569332,0.00011105,2]
[332855761,1721585433998,-169.96857348,0.00011105,2]
[332855762,1721585434007,-155.0,0.00011105,2]
[332855763,1721585434017,-364.15809963,0.00011105,2]
[332855764,1721585434026,-645.18668223,0.00011105,2]
[332855765,1721585434038,-427.28726103,0.00011105,2]
[332855766,1721585434053,-7411.7492,0.00011105,2]
[332855767,1721585434064,-2218.82552271,0.00011105,2]
[332855768,1721585434076,-8960.10337308,0.00011105,2]
[332855769,1721585434085,-420.0,0.00011164,2]
[332855770,1721585434094,-589.71302692,0.00011278,2]
[332855771,1721585434106,-259.94697308,0.00011278,2]
[332855772,1721585434115,-179.54,0.00011319,2]
[332855773,1721585434133,-357.8870344,0.00011321,2]
[332855774,1721585434147,-819.28,0.00011321,2]
[332855775,1721585434252,-2923.89261004,0.00011321,2]
[332855776,1721585434266,-369.42286237,0.00011321,2]
[332855777,1721585434277,-736.68580234,0.00011321,2]
[332855778,1721585434288,-2379.69842787,0.00011321,2]
[332855779,1721585434298,-1226.3264,0.00011381,2]
[332855780,1721585434307,-315.27063461,0.00011477,2]